Cogmind - Beta 16.1 @@@ ROGUE MODE // 2026.04.23 @ 19:24:44 Player: Elxavo Result: Destroyed by Y-45 Defender with Beam Rifle Performance ------------- Evolutions (1) 500 Regions Visited (2) 400 Robots Destroyed (54) 270 Value Destroyed (1456) 1456 Prototype IDs (1) 20 Alien Tech Used (0) 0 Bonus (46) 46 TOTAL SCORE: 2692 Bonus ------- High Alert Combat Kills 46 Cogmind --------- Core Integrity 0/400 Matter 371/500 Energy 275/275 System Corruption 0% Temperature Warm (141) Movement Walking (200) Ox1 Location -9/Materials Parts ------- > --- POWER (1) -------- Deuterium Engine > --- PROPULSION (2) --- Titanium Leg Titanium Leg > --- UTILITY (4) ------ Large Storage Unit High-capacity Matter Pod Utility Shielding Light Armor Plating > --- WEAPON (2) ------- Great Maul > --- INVENTORY (15) --- Titanium Leg Titanium Leg Armored Wheel Armored Wheel Armored Wheel Armored Wheel Heat Sink Signal Interpreter Heavy Particle Cannon Heavy Particle Cannon Grenade Launcher Peak State ------------ > --- POWER ------------ Deuterium Engine > --- PROPULSION ------- Titanium Leg Titanium Leg > --- UTILITY ---------- Large Storage Unit High-capacity Matter Pod Seismic Detector Utility Shielding > --- WEAPON ----------- Heavy Particle Cannon Heavy Assault Rifle > --- INVENTORY -------- Deuterium Engine Titanium Leg Titanium Leg Armored Wheel Armored Wheel Armored Wheel Armored Wheel Heat Sink Signal Interpreter Light Armor Plating Heavy Particle Cannon Heavy Particle Cannon Light Cannon Grenade Launcher Great Maul [Rating: 21] Favorites ----------- Power Light Ion Engine Engine Light Ion Engine Propulsion Light Treads Treads Light Treads Leg Aluminum Leg Utility Seismic Detector Device Seismic Detector Storage Large Storage Unit Protection Utility Shielding Weapon Light Cannon Energy Gun Medium Laser Energy Cannon Heavy Particle Cannon Ballistic Gun Heavy Assault Rifle Ballistic Cannon Light Cannon Launcher Rocket Launcher Impact Weapon Great Maul Build | -11 -10 -9 ------- Run | Yrd Mat Mat Slots Evolved 2 | . . 2 Power . | . . . Propulsion . | . . . Utility 2 | . . 2 Weapon . | . . . Parts Attached 35 | 7 5 23 Power 6 | 1 . 5 Engine 6 | 1 . 5 Core . | . . . Reactor . | . . . Propulsion 8 | 2 . 6 Treads 2 | 2 . . Leg 6 | . . 6 Wheel . | . . . Hover . | . . . Flight . | . . . Utility 8 | 2 3 3 Device 2 | 1 1 . Storage 4 | 1 2 1 Processor . | . . . Hackware . | . . . Protection 2 | . . 2 Artifact . | . . . Weapon 13 | 2 2 9 Energy Gun 2 | 2 . . Energy Cannon 4 | . . 4 Ballistic Gun 2 | . . 2 Ballistic Cannon 3 | . 2 1 Launcher 1 | . . 1 Special Weapon . | . . . Impact Weapon 1 | . . 1 Slashing Weapon . | . . . Piercing Weapon . | . . . Special Melee Weapon . | . . . Unidentified Prototypes 1 | . . 1 Parts Lost 9 | . . 9 Power 3 | . . 3 Propulsion 1 | . . 1 Utility 1 | . . 1 Weapon 4 | . . 4 Highest Loss Streak 4 | . . 4 To Critical Strikes . | . . . Average Backups 12 | 4 10 14 Power . | . 1 . Propulsion 4 | 2 2 5 Utility 2 | . 3 2 Weapon 4 | . 3 5 Tool/Special . | . . . Unused Backups 25 | . 9 16 Power . | . . . Propulsion 13 | . 4 9 Utility 6 | . 4 2 Weapon 6 | . 1 5 Tool/Special . | . . . Average Slot Usage (%) 99 | . 99 98 Engine 11 | . 14 10 Treads 14 | . 28 6 Leg 9 | . . 14 Device 11 | . 14 10 Storage 19 | . 14 22 Protection 7 | . . 11 Energy Cannon 6 | . . 10 Ballistic Gun 5 | . . 8 Ballistic Cannon 10 | . 25 1 Peak Build Rating 21 | 7 8 21 Average Rating 12 | 5 7 15 On Entrance 5 | . 7 8 Avg Prop Armor Cover (%) 11 | . . 11 Naked Turns . | . . . Heaviest Build 44 | 13 30 44 Greatest Support 40 | 40 40 40 Greatest Overweight (x) 3 | . . 3 Average Overweight (x) . | . . . Largest Inventory Capacity 15 | 8 15 15 Average Capacity 13 | 7 12 15 Most Carried 15 | 8 12 15 Average Carried 12 | 4 10 14 Final Capacity 15 | 8 15 15 Final Carried 12 | 8 12 11 Class Distribution -------------------- 81% | Mutant 18% | Scavenger-Mutant Dominant Class ---------------- Mutant | -10/Materials Mutant | -9/Materials Resources | -11 -10 -9 ----------- Run | Yrd Mat Mat Matter Collected 1297 | 270 413 614 Remotely . | . . . Salvage Created 1645 | 115 208 1322 Parts 92 | 7 14 71 Haulers Intercepted . | . . . Recyclers Shooed 1 | 1 . . Parts Field Recycled . | . . . Retrieved Matter . | . . . Parts Self-Destructed . | . . . Prevented . | . . . Parts Restored . | . . . Kills | -11 -10 -9 ------- Run | Yrd Mat Mat Combat Hostiles Destroyed 40 | . 9 31 Guns 5 | . . 5 Cannons 31 | . 9 22 AOE 3 | . . 3 Classes Destroyed 10 | 2 5 3 Worker 4 | . 2 2 Builder 1 | . . 1 Tunneler 1 | 1 . . Recycler 1 | 1 . . Operator 3 | . 1 2 Watcher 4 | . 1 3 Swarmer 11 | . 3 8 Grunt 20 | . 6 14 Duelist 1 | . . 1 Sentry 8 | . . 8 Best Kill Streak 5 | 2 4 5 Combat Bots Only 5 | . 3 5 Max Kills in Single Turn 2 | 1 2 2 Gunslinging . | . . . Exploded 1 | . . 1 Melee . | . . . Uniques/NPCs Destroyed . | . . . Combat | -11 -10 -9 -------- Run | Yrd Mat Mat Hostile Shots Fired 273 | . 38 235 Missed 64 | . 12 52 Hits 209 | . 26 183 Melee 2 | . . 2 Projectile 207 | . 26 181 Critical Strikes 6 | . . 6 Damage Taken 2688 | . 306 2382 Core 453 | . 51 402 Absorbed by Shields . | . . . Redirected to Shielding 36 | . . 36 Regen/Repaired (Parts) 251 | . . 251 Core Remaining (%) 89 | 100 79 . Volleys Fired 148 | 7 36 105 Largest 2 | 2 2 2 Hottest 105 | 100 100 105 Shots Fired 270 | 14 72 184 Gun 80 | 14 2 64 Cannon 185 | . 70 115 Launcher 5 | . . 5 Special . | . . . Kinetic 151 | . 70 81 Thermal 105 | 14 2 89 Explosive 5 | . . 5 Electromagnetic 9 | . . 9 Robot Hit Streak 10 | 4 9 10 Robot Miss Streak 5 | 2 4 5 Penetration Max . | . . . Secondary Targets . | . . . Shots Hit Robots 159 | 8 40 111 Core Hits 65 | 3 14 48 Critical Kills . | . . . Critical Parts Destroyed 2 | . . 2 Critical Strikes 5 | . 3 2 Destroy 1 | . . 1 Blast 3 | . 3 . Smash 1 | . . 1 Melee Attacks 7 | . . 7 Impact 7 | . . 7 Slashing . | . . . Piercing . | . . . Sneak Attacks . | . . . Combat Hostiles . | . . . Follow-up Attacks . | . . . Damage Inflicted 3422 | 99 698 2625 Guns 582 | 99 . 483 Cannons 2431 | . 698 1733 Explosions 250 | . . 250 Melee 159 | . . 159 Ramming . | . . . Kinetic 1387 | . 698 689 Thermal 1476 | 99 . 1377 Explosive 250 | . . 250 Electromagnetic 150 | . . 150 Impact 159 | . . 159 Slashing . | . . . Piercing . | . . . Highest Corruption . | . . . Average Corruption . | . . . Corruption Purged . | . . . Corruption Blocked . | . . . Overload Shots . | . . . Overflow Damage 86 | . 19 67 Projectiles 37 | . 19 18 Explosions 2 | . . 2 Melee 47 | . . 47 Knockbacks 14 | . 13 1 Impact . | . . . Kinetic 12 | . 11 1 Secondary 2 | . 2 . Self-Inflicted Damage 13 | . . 13 Shots 1 | . . 1 Rammed . | . . . Targets Rammed . | . . . Kicked . | . . . Crushed . | . . . Highest Temperature 423 | 117 51 423 Average Temperature 103 | 48 25 119 Received Heat Transfer 1065 | . 111 954 Effects 8 | . . 8 Shutdowns 2 | . . 2 Interference 4 | . . 4 Matter Decay 1 | . . 1 Damage (minor) 1 | . . 1 Siege Activations . | . . . Martial Activations . | . . . Shielding Activations . | . . . Robots Disrupted . | . . . Combat Hostiles . | . . . Robots Corrupted 1 | . . 1 Combat Hostiles 1 | . . 1 Parts Fried 2 | . . 2 Impact Corruptions 2 | . . 2 Robots Melted . | . . . Combat Hostiles . | . . . Parts Melted 3 | . . 3 Heat Transferred 2479 | 296 . 2183 Parts Sabotaged . | . . . Parts Stolen . | . . . Parts Stripped . | . . . Power Chain Reactions . | . . . Alert | -11 -10 -9 ------- Run | Yrd Mat Mat Maximum Alert Level 2 | . . 2 Low Security (%) 63 | 100 100 41 Level 1 30 | . . 48 Level 2 6 | . . 9 Level 3 . | . . . Level 4 . | . . . Level 5 . | . . . High Security . | . . . Max Security . | . . . Peak Influence 527 | 5 96 527 Initial . | . . . Average 137 | . 29 204 Influence Increases 1375 | 10 333 1032 Destroy 0b10 Robot/C 800 | . 180 620 Destroy 0b10 Robot/NC 70 | 10 20 40 Destroy Leader 228 | . 42 186 Successful Hack 50 | . 28 22 Disable Machine 90 | . 15 75 Destroy Structure 47 | . 3 44 Lose Combat Pursuer 90 | . 45 45 Influence Decreases 860 | 10 333 517 Time Decay 770 | 10 333 427 Lost Part 90 | . . 90 Squads Dispatched 6 | . 1 5 Investigation 1 | . 1 . Extermination . | . . . Reinforcement 5 | . . 5 Assault . | . . . Garrison . | . . . Intercept . | . . . Searches Triggered . | . . . Construction Impeded 1 | . . 1 Haulers Reinforced . | . . . Active Scanning Responses . | . . . Cargo Convoy Interrupts . | . . . Stealth | -11 -10 -9 --------- Run | Yrd Mat Mat Distress Signals 1 | . 1 . Communications Jammed . | . . . Distress Signals . | . . . Times Spotted 68 | . 23 45 Peak Tracking Total 6 | . 4 6 Tactical Retreats 5 | . 3 2 Traps | -11 -10 -9 ------- Run | Yrd Mat Mat Traps Triggered 2 | . 2 . Indirectly . | . . . Trap Hack Attempts . | . . . Triggered . | . . . Disarmed . | . . . Reprogrammed . | . . . Reused . | . . . Traps Extracted . | . . . Installed . | . . . Triggered . | . . . Machines | -11 -10 -9 ---------- Run | Yrd Mat Mat Machines Disabled 6 | . 1 5 Max in Single Turn 1 | . 1 1 Machines Repaired . | . . . Machines Dismantled . | . . . Machines Sabotaged . | . . . Overloaded Fab Kills . | . . . Hacking | -11 -10 -9 --------- Run | Yrd Mat Mat Machines Accessed 18 | . 7 11 Terminals 13 | . 6 7 Fabricators . | . . . Repair Stations 2 | . . 2 Recycling Units 2 | . 1 1 Scanalyzers 1 | . . 1 Garrison Access . | . . . Total Hacks 53 | . 17 36 Successful 32 | . 7 25 Failed 21 | . 10 11 Catastrophic 2 | . 2 . Database Lockouts . | . . . Manual 28 | . 6 22 Terminals 38 | . 16 22 Fabricators . | . . . Repair Stations 10 | . . 10 Recycling Units 3 | . 1 2 Scanalyzers 2 | . . 2 Garrison Access . | . . . Terminal Hacks 6 | . 4 2 Record 1 | . . 1 Robot Analysis 1 | . . 1 Patrol Status 1 | . 1 . Hauler Manifests 1 | . 1 . Zone Layout 2 | . 2 . Fabricator Hacks . | . . . Repair Station Hacks 8 | . . 8 Scan Component 4 | . . 4 Repair 4 | . . 4 Recycling Unit Hacks . | . . . Scanalyzer 2 | . . 2 Retrieve Study 2 | . . 2 Garrison Access Hacks . | . . . Unauthorized Hacks 16 | . 3 13 Terminals 14 | . 3 11 Assimilate 3 | . 1 2 Botnet 5 | . 1 4 Skim 6 | . 1 5 Fabricators . | . . . Repair Stations . | . . . Recycling Units 2 | . . 2 Reject 1 | . . 1 Mask 1 | . . 1 Scanalyzers . | . . . Garrison Access . | . . . Data Cores Recovered 1 | . 1 . Used . | . . . Hacking Detections 14 | . 5 9 Full Trace Events 1 | . . 1 Feedback Events . | . . . Feedback Blocked . | . . . Robot Schematics Acquired . | . . . Robots Built . | . . . Authchips . | . . . Time . | . . . Total Robot Build Rating . | . . . Part Schematics Acquired . | . . . Parts Built . | . . . Authchips . | . . . Time . | . . . Total Part Build Rating . | . . . Part Studies Acquired 1 | . . 1 Parts Repaired 4 | . . 4 Time 128 | . . 128 Parts Recycled . | . . . Recycled Matter . | . . . Retrieved Matter . | . . . Retrieved Components . | . . . Parts Scanalyzed . | . . . Part Schematics Acquired . | . . . Parts Damaged . | . . . Bothacking | -11 -10 -9 ------------ Run | Yrd Mat Mat Used RIF Installer . | . . . Robots Hacked . | . . . Non-combat . | . . . Combat . | . . . Robot Hacks Applied . | . . . Relay Couplers Released . | . . . Fabnet Peak Effective % . | . . . Robots Rewired . | . . . Allies Hacked . | . . . Hacks Repelled . | . . . Allies | -11 -10 -9 -------- Run | Yrd Mat Mat Total Allies . | . . . Largest Group . | . . . Highest-Rated Group . | . . . Highest-Rated Ally . | . . . Total Orders . | . . . Ally Attacks . | . . . Total Damage . | . . . Kills . | . . . Allies Corrupted . | . . . Allies Melted . | . . . Intel | -11 -10 -9 ------- Run | Yrd Mat Mat Active Infowar (turns) 4724 | 47 1671 3006 Seismic 4724 | 47 1671 3006 Robot Analysis Total 1 | . . 1 Derelict Logs Recovered . | . . . Drone Launches . | . . . Drone Recoveries . | . . . Exploration | -11 -10 -9 ------------- Run | Yrd Mat Mat Turns Passed 4927 | 183 1671 3073 Spaces Moved 1769 | 91 709 969 Core 1 | 1 . . Treads 1014 | 90 709 215 Legs 754 | . . 754 Wheels . | . . . Hover . | . . . Flight . | . . . Fastest Speed 50 | 50 160 160 Average Speed 172 | 158 160 183 Slowest Speed 330 | 160 160 330 Overloaded Moves . | . . . Propulsion Burnouts . | . . . Robots Hopped . | . . . Potential Cave-ins . | . . . Cave-ins Triggered . | . . . Exploration Rate (%) 60 | 5 96 80 Regions Visited 2 Branch Regions . Pre-discovered Areas . | . . . Known Exits Taken . | . . . Unknown Exits Taken 2 | 1 1 . Scrap Searched . | . . . Spaces Dug . | . . . Terrain Destroyed 48 | . . 48 Melee . | . . . Projectile 13 | . . 13 AOE 35 | . . 35 Terrain Rammed . | . . . Walls Destroyed . | . . . Machines Disabled . | . . . Actions | -11 -10 -9 --------- Run | Yrd Mat Mat Total 3369 | 112 1181 2076 Wait 1332 | . 405 927 Move 1767 | 90 708 969 Hop . | . . . Pick Up 43 | 8 13 22 Fast Attach 14 | 7 2 5 Attach 10 | . . 10 Detach . | . . . Swap 16 | . 3 13 Drop 32 | . 14 18 Fire 148 | 7 36 105 Melee 7 | . . 7 Ram . | . . . Kick . | . . . Crush . | . . . Escape Stasis . | . . . Rewire . | . . . Trap . | . . . Miscellaneous . | . . . Route ------- -11/Scrapyard -10/Materials (discovered 5 exits: *Mat x3 / [*Min x2]) -9/Materials (discovered 3 exits: [*Mat x2] / [*Min]) History --------- Turn | Location | Event 16 | -11/Scrapyard | Discovered new exit (range 15) 184 | -11/Scrapyard | Entered Materials 320 | -10/Materials | Build established: Mutant 736 | -10/Materials | Discovered new exit (range 9) 854 | -10/Materials | Discovered new exit (range 13) 952 | -10/Materials | Discovered new exit (range 13) 1160 | -10/Materials | Discovered new exit (range 11) 1796 | -10/Materials | Discovered new exit (range 11) 1855 | -10/Materials | Entered another Materials area 1855 | -9/Materials | Evolved 2 slots: Utility x2 3465 | -9/Materials | Build established: Scavenger-Mutant 3471 | -9/Materials | Repaired Seismic Detector 3498 | -9/Materials | Repaired Aluminum Leg 3849 | -9/Materials | Discovered new exit (range 11) 4277 | -9/Materials | Discovered new exit (range 11) 4340 | -9/Materials | Build established: Mutant 4594 | -9/Materials | Core integrity fell below 50% 4679 | -9/Materials | Discovered new exit (range 3) 4797 | -9/Materials | Repaired Hvy. Particle Cannon 4837 | -9/Materials | Repaired Titanium Leg 4908 | -9/Materials | Core integrity fell below 20% 4928 | -9/Materials | Destroyed by Y-45 Defender with Beam Rifle Last Messages --------------- 04895_ Critical hit (Burn: +37). 04895_ Seismic Detector destroyed. 04897_ Critical hit (Burn: +37). 04898_ Overheating: Matter decay (-71). 04900_ Overheating: System interference. 04900_ Hvy. Particle Cannon temporarily disabled. 04906_ Lgt. Cannon destroyed. 04911_ Power failure, Deuterium Engine shutdown. 04911_ Y-45 Defender suffers critical hit (Smash). 04911_ Destroyed Lgt. Treads. 04911_ Y-45 Defender system corrupted by crushing effect. 04913_ M-13 Machinist repairs Y-45 Defender Heat Sink. 04917_ U-05 Engineer builds a Wall. 04919_ Critical hit (Burn: +37). 04922_ Hvy. Particle Cannon destroyed. 04922_ Critical hit (Burn: +37). 04926_ Destroyed Beam Rifle. 04926_ Y-45 Defender system corrupted by crushing effect. 04927_ Y-45 Defender system terminally corrupted. 04928_ Critical hit (Burn: +37). Map ----- +----------------------------------------------------+ | ??????????????????????????????? | | ??????????????????????????????? | | ??????????????????????????????? | | ??????????????????????????????? | | ??????????????????????????????? | | ??????????????????????????????? | | ??????????????????????????????? | | ??????????????????????????????? | | ??????????????????????????????? | | ??????????????????????????????? | | ??????????????????????????????? | | ??????????????????????????????? | | ??????????????????????????????? | | ?????????????????????????##???? | | ????????????????????????# ???? | | ????????????????????????# ???? | | ????????????????????????# ???? | | ???????????????????## ?# """ # | | ???????????????????? # """ # | | ???????????????????? # """ # | | ? ?????????????????? +% % # | | # ?????????????????! #Y""" # | | # ?????????????????# ##% "" # | | # ?? ?????????????# ## "" # | | # ##/?????????????# ## u # | | # ?????????????# ##@%m] # | | # ?????????????# ###+##?? | | # ?????????????# #?#%#??? | | # ??##########?# #?# #??? | | # ??# #?# ### #??? | | # ### """" #?# #??? | | #= """" #?# #??? | | %/! """" #?# #??? | | "" %#! ### #??? | | "T" #""" + #??? | | #"R ##########??? | | #""" #???????????? | | # #???????????? | | "" ##########???????????? | | """ #????????????????????? | | "" #????????????????????? | | #????????????????????? | | #########????????????? | | "" #????????????? | | "" #????????????? | | """ < #???#######??? | | #???# #??? | | ###+######## #??? | | """ # + T #??? | | """ # """ ## #??? | +----------------------------------------------------+ Best States ------------- Heat Dissipation 28 Energy Generation 14 Energy Capacity 275 Matter Stores 500 Matter Capacity 500 Sight Range 16 Terrain Scan Density 10 Armor Coverage 150 Utility Shielding 33 Evasion (%) 40 Recoil Reduction 2 Item Schematics ----------------- None Robot Schematics ------------------ None Fabricated ------------ Nothing Repaired ---------- Seismic Detector | 10% | -9/Materials Aluminum Leg | 14% | -9/Materials Hvy. Particle Cannon | 38% | -9/Materials Titanium Leg | 47% | -9/Materials Studied --------- Imp. Aluminum Leg | -9/Materials | Hacked Alien Tech Used ----------------- None Achievements -------------- Myspace Quantum Hacking True Hacker root@ Challenges ------------ None Game ------ Seed NanofilamentsGodPlatform Manual? 0 Play Time 00:56:25 Cumulative 81.5 hours Start 2026.04.23 @ 18:21:15 End 2026.04.23 @ 19:24:44 Sessions 1 Manual Loads 0 Difficulty Rogue Special Mode None Game No. 103 Rogue 103 Adventurer 0 Explorer 0 Win Type - Total 0 Types 0/0/0/0/0/0/0/0/0/0 Lore% 34 Gallery% 26 Achievement% 21 Wizard Run 0 Options --------- Layout 0 ASCII 0 Keyboard 0 Movement Mouse Keybinds 0 Fullscreen 1 Font 18/SmallcapsGlow Map View 76x50 Zoom Use 0% Tactical HUD 1 Map Filters NONE Filters LOW_CONTRAST(13,24,33) Steam 1 RUN: d7971d01-84e5-420d-99d6-99a8959257b4